bitfinex/quotes_ETHUSD_20220202
["timestamp","ask_amount","ask_price","bid_price","bid_amount"]
[1643824425951,0.94471882,2679.3,2678.1,5.57670309]
[1643824425952,0.00269714,2678.9,2678.1,5.57670309]
[1643824426152,0.1865,2679.2,2678.1,3.12670309]
[1643824426554,0.1865,2679.2,2678.3,1.93331999]
[1643824426755,0.1865,2679.4,2679.1,0.15350452]
[1643824426955,0.0185942,2679.2,2679.1,0.17887612]
[1643824427154,0.0185942,2679.2,2679.1,0.71787612]
[1643824427595,0.0185942,2679.2,2678.4,0.539]
[1643824427797,0.1865,2679.1,2678.6,0.69789629]
[1643824427993,0.14618364,2679.1,2678.6,0.69789629]
[1643824428196,1.07814715,2679.1,2678.6,0.69789629]
[1643824428398,0.14618364,2679.1,2678.6,0.69789629]
[1643824428796,0.69536487,2678.9,2678.6,0.69789629]
[1643824428996,0.1865,2678.8,2678.6,0.69789629]
[1643824429196,0.88186487,2678.8,2678.6,0.69789629]
[1643824429596,0.1865,2678.8,2678.6,0.69789629]
[1643824429996,0.1865,2678.9,2678.0,0.00829602]
[1643824430597,0.00523717,2678.8,2678.0,0.00829602]
[1643824430799,0.1865,2678.7,2678.0,0.00829602]
[1643824431001,0.1865,2678.7,2678.3,0.93617824]
[1643824431433,0.1365,2678.7,2678.3,0.93617824]
[1643824431634,0.1365,2678.7,2678.3,0.77706032]
[1643824431834,0.1865,2678.9,2678.3,0.77706032]
[1643824432036,0.1865,2679.1,2678.3,0.77706032]
[1643824432334,0.3734,2679.1,2678.0,0.00829602]
[1643824432535,0.69536487,2678.9,2678.0,0.00829602]
[1643824432735,0.17585373,2678.7,2678.0,0.00829602]
[1643824432935,0.1865,2678.6,2678.0,0.00829602]
[1643824433335,0.70243966,2678.5,2678.0,0.00829602]
[1643824433540,0.1865,2678.4,2678.0,0.00829602]
[1643824433740,0.1365,2678.4,2678.0,0.00829602]
[1643824434136,0.14202212,2678.4,2678.0,0.00829602]
[1643824434338,0.7259,2678.3,2678.0,0.00829602]
[1643824434539,0.1869,2678.1,2678.0,0.00829602]
[1643824434737,0.3736,2678.1,2678.0,0.00829602]
[1643824434986,0.9126,2678.1,2677.1,0.72330696]
[1643824435189,0.93415,2677.9,2677.3,0.00552418]
[1643824435390,0.1867,2677.8,2677.3,0.00552418]
[1643824435788,0.72993106,2677.8,2677.3,0.00552418]
[1643824436288,3.94615142,2677.4,2677.3,0.00552418]
[1643824436489,3.94615142,2677.4,2677.3,0.00552358]
[1643824437090,0.74615142,2677.4,2677.3,0.00552358]
[1643824437692,0.74615142,2677.4,2677.2,0.00533699]
[1643824438391,0.80986297,2677.4,2677.2,0.00533699]
[1643824438595,0.06371155,2677.4,2676.7,0.69328151]
[1643824438836,0.06371155,2677.4,2677.2,0.00498214]
[1643824439837,0.06371155,2677.4,2677.0,0.17540096]
[1643824440038,0.06371155,2677.4,2677.2,0.78685006]
[1643824440238,0.06371155,2677.4,2677.2,0.7918322]
[1643824440837,0.06371155,2677.4,2677.2,0.00498214]
[1643824441038,0.06371155,2677.4,2676.5,0.1867]
[1643824441245,0.06371155,2677.4,2677.2,0.00516859]
[1643824441838,0.91484966,2677.4,2677.2,0.00516859]
[1643824442237,0.06371155,2677.4,2676.8,0.74329413]
[1643824442500,0.06371155,2677.4,2677.2,0.00507364]
[1643824442890,0.06371155,2677.4,2676.5,0.1867]
[1643824443093,0.14333644,2677.2,2676.5,0.1867]
[1643824443291,0.87285985,2677.1,2676.5,0.89208993]
[1643824443591,0.87285985,2677.1,2676.6,0.1867]
[1643824444196,0.00269598,2677.1,2676.6,0.1867]
[1643824444390,0.06371155,2677.4,2676.6,0.1867]
[1643824444592,0.06371155,2677.4,2676.7,0.14704697]
[1643824445089,0.06371155,2677.4,2676.7,0.14892272]
[1643824445893,0.06371155,2677.4,2676.7,0.14704697]
[1643824446093,0.06640753,2677.4,2677.0,0.80328943]
[1643824447334,0.07153594,2677.4,2677.1,0.00512913]
[1643824447537,0.06883996,2677.4,2677.1,0.00512913]
[1643824447735,0.06883996,2677.4,2676.6,0.1867]
[1643824447736,4.65,2677.3,2676.6,0.1867]
[1643824447944,4.8367,2677.3,2676.6,0.1867]
[1643824448160,0.00269598,2677.2,2676.6,0.1867]
[1643824448635,0.70692153,2677.0,2676.6,0.1867]
[1643824448841,0.70692153,2677.0,2676.4,0.98023332]
[1643824449037,0.00269598,2676.9,2676.4,0.98023332]
[1643824450096,0.06749275,2677.3,2676.4,0.98023332]
[1643824450295,0.25419275,2677.3,2676.4,0.98023332]
[1643824450694,0.00269598,2677.2,2676.4,0.98023332]
[1643824450894,0.83154019,2677.1,2676.4,0.98023332]
[1643824451295,0.00269598,2677.0,2676.4,0.98023332]
[1643824452096,0.00269598,2677.0,2676.6,0.00552398]
[1643824452995,0.00269598,2677.0,2676.4,0.79353332]
[1643824453199,0.06326125,2676.9,2676.4,0.79353332]
[1643824453399,0.06326125,2676.9,2676.7,0.0055239]
[1643824454540,0.06326125,2676.9,2676.7,0.00226924]
[1643824454840,0.06326125,2676.9,2676.8,4.7367]
[1643824455043,6.125e-05,2676.9,2676.8,4.7367]
[1643824455641,6.125e-05,2676.9,2676.8,5.2757]
[1643824456042,6.125e-05,2676.9,2676.8,7.37945816]
[1643824456243,6.125e-05,2676.9,2676.8,7.38233119]
[1643824456442,6.125e-05,2676.9,2676.8,8.21727]
[1643824457045,6.125e-05,2676.9,2676.8,9.7234741]
[1643824457244,6.125e-05,2676.9,2676.8,10.44701021]
[1643824457798,0.00537805,2677.3,2676.9,5.6]
[1643824457990,0.00537805,2677.3,2677.0,3.23914078]
[1643824458191,0.00537805,2677.3,2677.0,3.53914078]
[1643824458390,0.00537805,2677.3,2677.0,2.00941]
[1643824458590,0.00537805,2677.3,2677.1,1.0]
[1643824458792,0.00537805,2677.3,2677.2,6.3257]
[1643824458990,0.00537805,2677.3,2677.2,6.139]
[1643824459194,0.18939598,2678.2,2677.2,6.18909]
[1643824459391,0.00537842,2677.3,2677.2,6.18909]
[1643824460391,0.00269598,2678.0,2677.8,1.07410003]
[1643824460692,0.80009839,2678.3,2677.8,1.07410003]
[1643824460693,0.02209297,2677.9,2677.8,0.89809506]
[1643824461093,1.60577647,2677.9,2677.8,0.89809506]
[1643824461749,1.5836835,2677.9,2677.8,1.0882622]
[1643824461948,0.00542462,2678.0,2677.8,1.0882622]
[1643824462151,1.5836835,2677.9,2677.8,1.0882622]
[1643824462847,1.5836835,2677.9,2677.4,3.05971217]
[1643824463047,1.5836835,2677.9,2677.5,0.539]
[1643824463246,1.5836835,2677.9,2677.6,3.06974949]
[1643824463448,1.5836835,2677.9,2677.6,4.79935261]
[1643824464252,1.5836835,2677.8,2677.6,2.70890035]
[1643824464453,1.5836835,2677.8,2677.7,0.05009]
[1643824466591,0.00516492,2677.9,2677.7,0.98358]
[1643824466797,1.5836835,2677.8,2677.7,1.28358]
[1643824466994,1.5836835,2677.8,2677.7,3.3569189]
[1643824467195,1.5836835,2677.8,2677.7,3.8959189]
[1643824467391,0.00516492,2677.9,2677.8,5.45]
[1643824467593,0.0206566,2678.3,2677.8,10.43764769]
[1643824467594,0.00269598,2678.3,2677.8,10.43764769]
[1643824467799,0.02408483,2678.3,2678.2,5.61293754]
[1643824467993,0.02408483,2678.3,2678.2,7.69658533]
[1643824468193,0.02138885,2678.3,2678.2,9.53558533]
[1643824468393,0.02138885,2678.3,2678.2,10.26619456]
[1643824468594,0.02138885,2678.3,2678.2,10.42386937]
[1643824468843,0.69536487,2678.8,2678.2,10.42386937]
[1643824468844,0.00269598,2678.7,2678.2,10.42386937]
[1643824469041,0.00552875,2678.4,2678.3,1.0]
[1643824469239,0.00552875,2678.4,2678.3,1.539]
[1643824469640,0.00552875,2678.4,2678.3,7.38296621]
[1643824469840,0.69806085,2678.9,2678.3,5.389]
[1643824470043,0.69536487,2678.8,2678.3,5.389]
[1643824470245,0.48431346,2678.5,2678.3,1.539]
[1643824470641,0.43431346,2678.5,2678.3,1.539]
[1643824471242,0.43431346,2678.5,2678.4,0.05009]
[1643824471442,0.43420976,2678.5,2678.4,0.58909]
[1643824471740,0.43420976,2678.5,2678.4,0.88909]
[1643824472143,0.43420976,2678.5,2678.4,0.58909]
[1643824472344,0.43420976,2678.5,2678.2,1.82149404]
[1643824472345,0.43420976,2678.5,2678.2,0.88828404]
[1643824472807,0.4287848,2678.5,2678.2,0.88828404]
[1643824473808,1.12939001,2678.5,2678.2,0.88828404]
[1643824474007,0.1865,2678.4,2678.2,0.88828404]
[1643824474613,0.1865,2678.4,2677.8,0.05009]
[1643824474812,0.00269598,2678.3,2677.8,0.05009]
[1643824475611,0.00269598,2678.3,2678.0,0.17124795]
[1643824476258,0.00552892,2678.2,2678.0,0.17124795]
[1643824477250,0.00269598,2678.3,2678.0,0.17124795]
[1643824477447,0.00552887,2678.2,2678.0,0.17124795]
[1643824478650,0.01105774,2678.2,2678.0,0.17124795]
[1643824478851,0.00552887,2678.2,2678.0,0.17124795]
[1643824479650,0.00269598,2678.3,2678.0,0.17124795]
[1643824479855,0.00503633,2678.2,2678.0,0.17124795]
[1643824480996,0.00278083,2678.2,2678.0,0.17124795]
[1643824481796,0.00278083,2678.2,2678.0,1.10463795]
[1643824482096,0.00269598,2678.4,2678.0,1.10463795]
[1643824482299,0.00473081,2678.2,2678.0,1.40463795]
[1643824482500,0.00473081,2678.2,2678.1,7.04180804]
[1643824482700,0.00473081,2678.2,2678.1,7.22830804]
[1643824483098,0.00269598,2678.4,2678.1,7.22830804]
[1643824483397,0.00522332,2678.3,2678.1,7.76730804]
[1643824483597,0.00522332,2678.3,2678.2,6.01478405]
[1643824484049,0.00522332,2678.3,2678.2,6.55378405]
[1643824484457,0.4287848,2678.5,2678.3,0.80575101]
[1643824484651,0.4287848,2678.5,2678.4,2.03475061]
[1643824484850,0.4287848,2678.5,2678.4,0.34623976]
[1643824485054,0.4287848,2678.5,2678.3,0.80575101]
[1643824485251,0.3787848,2678.5,2678.3,0.80575101]
[1643824485852,0.38431921,2678.5,2678.3,0.80575101]
[1643824486455,0.00269598,2678.8,2678.4,4.05009]
[1643824486653,0.00269598,2678.8,2678.5,0.539]
[1643824486854,0.00269598,2678.8,2678.7,4.55009]
[1643824487053,1.00269598,2679.0,2678.7,4.55009]
[1643824487507,1.00269598,2679.0,2678.9,0.86934754]
[1643824487800,1.0,2679.0,2678.9,0.86934754]
[1643824488597,2.58280777,2679.0,2678.9,0.86934754]
[1643824489797,2.58280777,2679.0,2678.9,0.91943754]
[1643824490501,2.58280777,2679.0,2678.9,0.86934754]
[1643824490699,2.58280777,2679.0,2678.8,1.10301073]
[1643824490899,1.58280777,2678.9,2678.6,0.05009]
[1643824491098,1.58280777,2678.9,2678.6,0.58909]
[1643824491954,1.58834189,2678.9,2678.7,0.81508702]
[1643824492158,1.58280777,2678.8,2678.7,0.81508702]
[1643824492555,1.58280777,2678.8,2678.6,0.58909]
[1643824493157,1.58280777,2678.8,2678.6,0.05009]
[1643824493559,1.58280777,2678.8,2678.3,0.1865]
[1643824493758,0.74391379,2678.7,2678.3,0.1865]
[1643824493957,1.58280777,2678.6,2678.3,0.1865]
[1643824494558,1.58280777,2678.6,2678.2,0.05009]
[1643824494771,1.58280777,2678.6,2678.1,0.539]
[1643824494998,0.00269598,2678.5,2677.8,4.37719]
[1643824495197,0.1865,2678.4,2677.8,0.98359]
[1643824495398,1.58280777,2678.3,2677.8,0.98359]
[1643824495601,1.58550375,2678.3,2678.0,0.17266071]
[1643824496097,0.00269598,2678.3,2678.0,0.17266071]
[1643824496298,1.58319241,2678.4,2678.0,0.17266071]
[1643824496900,1.58588839,2678.4,2678.0,0.17266071]
[1643824499347,1.58588839,2678.4,2677.9,0.67395234]
[1643824500150,2.01285577,2678.3,2677.8,0.9335]
[1643824500353,2.01285577,2678.3,2677.7,0.0052317]
[1643824500354,1.73647834,2678.2,2677.7,0.00523164]
[1643824500553,1.76989241,2678.1,2677.7,0.00523164]
[1643824500854,1.58319241,2678.0,2677.7,0.00523164]
[1643824501052,0.1867,2677.9,2677.7,0.00523164]
[1643824501251,0.1867,2677.9,2677.5,0.86313204]
[1643824501252,1.58319241,2677.8,2677.5,0.86313204]
[1643824501655,0.1867,2678.0,2677.7,0.0049613]
[1643824502055,1.58339374,2677.9,2677.7,0.0049613]
[1643824502697,2.29177779,2677.8,2677.7,0.00511978]
[1643824502899,3.73339374,2677.8,2677.7,0.00511978]
[1643824503598,3.73339374,2677.8,2677.2,0.1867]
[1643824503798,1.58339374,2677.7,2677.2,0.1867]
[1643824503999,0.92974699,2678.1,2677.6,0.00511976]
[1643824504300,3.67026392,2678.0,2677.6,0.00511976]
[1643824504500,1.77009776,2677.9,2677.6,0.00511976]
[1643824504698,3.65035284,2677.8,2677.6,0.00511976]
[1643824504899,0.00690513,2677.1,2676.7,0.23679]
[1643824505102,3.25,2677.6,2676.6,0.1867]
[1643824505103,0.19343574,2677.2,2676.6,0.1867]
[1643824505301,0.8591286,2677.0,2676.5,0.1867]
[1643824505501,3.9672,2677.5,2676.5,0.23679]
[1643824505701,1.58372975,2677.4,2676.5,0.77579]
[1643824505903,1.58372975,2677.3,2676.5,0.77579]
[1643824506101,3.9672,2677.8,2676.5,2.82468336]
[1643824506352,1.58365733,2677.7,2676.5,3.76286641]
[1643824506552,0.1867,2677.6,2676.5,3.76286641]
[1643824506756,0.8121811,2677.1,2676.5,0.53679]
[1643824507148,0.8121811,2677.1,2676.5,0.23679]
[1643824507346,0.1867,2677.5,2676.5,0.23679]
[1643824507547,1.58371891,2677.4,2676.5,0.23679]
[1643824507746,0.1867,2677.3,2676.5,0.23679]
[1643824507947,1.58371891,2677.2,2676.5,0.23679]
[1643824508148,0.1867,2677.6,2676.5,2.33923005]
[1643824508350,0.75707551,2677.1,2676.5,0.23679]
[1643824508553,1.58383016,2677.0,2676.4,0.1867]
[1643824508748,1.58383016,2677.0,2676.7,0.00519489]
[1643824508749,1.77053016,2677.0,2676.7,0.00519489]
[1643824508949,1.58383016,2676.9,2676.7,0.00519489]
[1643824509549,1.58383016,2676.9,2676.3,0.83733188]
[1643824509750,0.1867,2676.8,2676.3,0.83733188]
[1643824509999,0.1867,2677.0,2676.7,0.00553632]
[1643824510702,1.58411118,2676.9,2676.7,0.00553632]
[1643824510903,1.58411118,2676.9,2675.7,0.1867]
[1643824510904,5.9736,2676.8,2675.7,0.1867]
[1643824511110,5.9736,2676.8,2675.5,0.02215493]
[1643824511111,0.74934523,2675.8,2675.5,0.02215493]
[1643824511302,0.1869,2676.5,2675.5,0.02215493]
[1643824511503,1.77111829,2676.4,2675.5,0.02215493]
[1643824511702,0.1867,2676.4,2675.5,0.02215493]
[1643824512002,0.19110381,2676.4,2675.2,0.1867]
[1643824512202,0.70830971,2676.0,2675.3,0.19027786]
[1643824512401,0.70830971,2676.0,2675.2,0.1867]
[1643824512802,0.92728755,2675.5,2675.2,0.1867]
[1643824513206,7.05013671,2676.1,2675.2,0.1867]
[1643824513609,7.05013671,2676.1,2675.2,0.19196395]
[1643824513610,2.42883671,2676.1,2675.2,0.19196395]
[1643824514048,2.42883671,2676.1,2675.2,0.00526395]
[1643824514248,0.67406187,2675.7,2675.2,0.00526395]
[1643824514449,0.1867,2675.6,2675.1,8.28822982]
[1643824514648,0.67406187,2675.7,2675.1,7.4]
[1643824514848,0.67406187,2675.7,2675.5,0.00526371]
[1643824514849,0.1867,2675.6,2675.5,0.00526371]
[1643824515950,0.1867,2675.6,2675.4,0.00526379]
[1643824516856,0.1867,2675.6,2675.1,7.4]
[1643824517053,0.67406187,2675.7,2675.4,0.0049045]
[1643824517525,0.1867,2676.0,2675.4,0.0049045]
[1643824517910,0.1867,2676.3,2675.4,0.0049045]
[1643824518110,2.26147025,2676.3,2675.4,0.0049045]
[1643824518310,2.26147025,2676.3,2674.9,0.60116459]
[1643824518311,0.17622777,2675.9,2674.9,0.77550909]
[1643824518510,0.17622777,2675.9,2675.6,0.00490434]
[1643824518713,0.71597148,2675.7,2675.6,0.00490434]
[1643824519312,0.71597148,2675.7,2675.0,0.89940197]
[1643824519511,0.71597148,2675.7,2675.5,0.00490438]
[1643824520012,0.71597148,2675.7,2675.0,1.06062682]
[1643824521545,0.71597148,2675.7,2675.0,0.1867]
[1643824521746,2.08793542,2675.6,2674.8,0.1867]
[1643824522147,0.71597148,2675.7,2674.8,0.1867]
[1643824522346,0.1867,2675.6,2674.8,0.1867]
[1643824522547,0.89728638,2675.7,2674.9,0.93457]
[1643824522749,0.89728638,2675.7,2674.7,0.1867]
[1643824522750,3.0,2675.6,2674.7,0.1867]
[1643824522950,0.19051056,2675.5,2674.5,0.1869]
[1643824523952,0.94586428,2674.8,2674.5,0.1869]
[1643824524248,0.37741056,2675.5,2674.3,0.77616021]
[1643824524448,0.0055305,2675.2,2674.9,0.00553126]
[1643824525303,0.78644219,2675.1,2674.3,0.77616021]
[1643824525603,0.78644219,2675.1,2674.9,0.00553122]
[1643824525800,0.00553056,2675.2,2674.9,0.00553122]
[1643824526798,0.00553056,2675.2,2674.9,0.01106244]
[1643824526799,0.68755787,2675.0,2674.9,0.01106244]
[1643824527000,0.68755787,2675.0,2674.9,0.00553122]
[1643824528001,0.68755787,2675.0,2674.4,0.1869]
[1643824528200,0.68755787,2675.0,2674.8,0.00505249]
[1643824529354,0.68755787,2675.0,2674.8,0.00486584]
[1643824529950,0.68755787,2675.0,2674.3,0.01946679]
[1643824530153,0.68755787,2675.0,2674.1,0.1869]
[1643824530154,2.10077021,2674.9,2674.1,0.1869]
[1643824530352,2.10077021,2674.9,2673.8,0.1869]
[1643824530353,2.29211635,2674.9,2673.8,0.1869]
[1643824530553,2.29211635,2674.9,2674.8,0.00486584]
[1643824530751,2.28767021,2674.9,2674.8,0.00486584]
[1643824530950,6.48767021,2674.9,2674.8,0.00486584]
[1643824531353,4.3869,2674.9,2674.8,0.00486584]
[1643824531552,4.5738,2674.9,2674.8,0.00486584]
[1643824531754,0.19807056,2674.3,2673.7,0.00174777]
[1643824531957,2.22118763,2674.8,2673.8,0.1869]
[1643824532353,2.22118763,2674.8,2673.6,0.1869]
[1643824532803,0.94439295,2673.9,2673.8,0.02111852]
[1643824533604,1.96479295,2673.9,2673.8,0.02111852]
[1643824533806,4.30948311,2673.9,2673.8,0.02111852]
[1643824534005,2.10948311,2673.9,2673.8,0.02111852]
[1643824534206,1.0204,2673.9,2673.7,0.00174777]
[1643824534406,1.0204,2673.9,2673.6,0.1869]
[1643824535006,4.77012713,2674.2,2673.6,0.1869]
[1643824535206,4.77012713,2674.2,2673.0,0.1869]
[1643824535406,0.16529237,2673.9,2673.0,0.1869]
[1643824535608,0.77509669,2673.6,2673.1,0.71157762]
[1643824535808,0.77509669,2673.6,2673.2,0.187]
[1643824536555,0.77509669,2673.6,2673.2,0.00506416]
[1643824536953,0.77509669,2673.6,2673.2,0.19206416]
[1643824537555,0.77509669,2673.6,2673.2,0.00506416]
[1643824537756,0.77509669,2673.6,2673.3,0.00506412]
[1643824537957,0.00367294,2674.0,2673.3,0.00506412]
[1643824538358,5.94515885,2674.2,2673.3,0.00506412]
[1643824538658,5.94515885,2674.2,2673.3,0.05009]
[1643824538659,5.7544,2674.2,2673.3,0.05009]
[1643824538857,4.5783,2674.2,2673.5,0.15079899]
[1643824539058,0.75131087,2674.2,2673.6,1.01425995]
[1643824539257,0.75131087,2674.2,2673.6,1.31425995]
[1643824539455,0.75131087,2674.2,2673.6,1.01425995]
[1643824539660,0.75131087,2674.2,2673.7,0.00174777]
[1643824540104,0.75131087,2674.2,2673.8,0.00506581]
[1643824541310,0.75131087,2674.2,2673.7,0.77160658]
[1643824541311,0.75131087,2674.2,2673.9,0.00206819]
[1643824541906,0.13819997,2674.3,2673.9,0.00206819]
[1643824542105,0.187,2674.6,2673.9,0.00206819]
[1643824542308,8.7438,2674.7,2673.9,0.00206819]
[1643824542506,8.7438,2674.7,2673.9,0.00518885]
[1643824542705,4.9197,2674.7,2673.9,0.00518885]
[1643824542904,0.18123968,2674.6,2673.9,0.00518885]
[1643824543107,0.84990238,2674.4,2673.9,0.87643195]
[1643824543305,0.84990238,2674.4,2673.9,0.8712431]
[1643824543604,0.84990238,2674.4,2674.1,0.00518869]
[1643824543854,3.7381,2674.7,2674.1,0.00518869]
[1643824544148,0.1869,2675.0,2674.1,0.00518869]
[1643824544348,0.1773061,2674.9,2674.1,0.00518869]
[1643824544554,0.1869,2674.8,2673.9,0.8712431]
[1643824544851,0.86879812,2674.7,2674.4,0.00536343]
[1643824546051,0.86879812,2674.7,2674.4,0.0108958]
[1643824546249,0.86879812,2674.7,2674.4,0.00553237]
[1643824547710,0.1869,2674.6,2674.4,0.00553237]
[1643824548509,0.1869,2674.6,2673.5,0.00174777]
[1643824548709,0.1869,2674.6,2674.4,0.00534724]
[1643824549111,5.2869,2674.5,2674.4,0.00534724]
[1643824549310,5.4738,2674.5,2673.5,0.00174777]
[1643824549510,0.78178441,2674.0,2673.5,0.00174777]
[1643824550115,0.78178441,2674.0,2673.4,0.86251632]
[1643824550313,0.78178441,2674.0,2673.5,0.00177429]
[1643824550912,0.78178441,2674.0,2673.6,0.00485452]
[1643824551114,4.6773,2674.4,2673.6,0.00485452]
[1643824551753,4.6773,2674.4,2673.6,0.00177429]
[1643824552161,0.1869,2674.6,2674.3,0.74634284]
[1643824552354,0.92207476,2674.9,2674.3,0.74634284]
[1643824553156,1.10897476,2674.9,2674.3,0.74634284]
[1643824553356,1.10897476,2674.9,2674.5,0.00523002]
[1643824553558,1.10897476,2674.9,2674.3,0.74634284]
[1643824554171,0.92207476,2674.9,2674.3,0.74634284]
[1643824555006,0.1869,2675.0,2674.3,0.74634284]
[1643824555206,0.1588103,2675.1,2674.3,0.74634284]
[1643824555408,0.1588103,2675.1,2674.4,0.1869]
[1643824555807,0.1588103,2675.1,2674.4,0.18896516]
[1643824556407,0.90923495,2675.0,2674.4,0.18896516]
[1643824556808,0.90923495,2675.0,2674.4,0.1869]
[1643824557008,0.00536064,2674.9,2674.4,0.19226167]
[1643824557810,0.00536064,2674.9,2674.7,0.38424607]
[1643824558013,0.00536064,2674.9,2674.8,2.839]
[1643824558210,2.1869,2676.0,2674.8,2.839]
[1643824558408,1.58500125,2675.9,2674.8,2.839]
[1643824558850,0.67369754,2675.4,2674.9,0.90524064]
[1643824559050,0.67369754,2675.4,2674.8,0.539]
[1643824559249,0.67369754,2675.4,2674.8,0.1869]
[1643824559450,0.67369754,2675.4,2674.6,0.1869]
[1643824559651,0.00512002,2675.5,2674.6,0.1869]
[1643824559850,0.00512002,2675.5,2674.6,1.66046]
[1643824560050,1.58497212,2675.4,2674.6,1.66046]
[1643824560251,1.58497212,2675.4,2674.6,2.04470607]
[1643824560450,0.00512002,2675.5,2674.6,2.04470607]
[1643824560656,0.00512023,2675.2,2675.0,0.14799403]
[1643824560856,0.00512023,2675.2,2675.1,6.01862607]
[1643824561053,0.00512023,2675.2,2675.1,6.74452607]
[1643824561254,0.00512023,2675.2,2675.1,8.04452607]
[1643824561452,0.69536487,2676.5,2675.1,8.04452607]
[1643824561453,0.1869,2676.4,2675.1,8.09461607]
[1643824561655,1.58471678,2676.3,2675.2,0.1867]
[1643824561854,1.08253422,2676.2,2675.3,0.539]
[1643824562054,1.58471678,2676.1,2675.3,0.539]
[1643824563101,0.00498405,2675.8,2675.4,0.74286555]
[1643824563306,0.00498405,2675.8,2675.5,0.539]
[1643824563901,1.08253422,2676.2,2675.5,0.539]
[1643824564101,0.00498408,2675.8,2675.5,0.539]
[1643824565101,1.08253422,2676.2,2675.5,0.539]
[1643824565301,0.00515492,2675.8,2675.5,0.539]
[1643824566104,1.58479212,2675.7,2675.5,0.539]
[1643824566652,2.06529064,2676.1,2675.5,0.539]
[1643824566653,1.58479944,2675.6,2675.5,0.539]
[1643824566856,1.58479944,2675.7,2675.1,0.43433607]
[1643824567054,1.58479944,2675.7,2675.0,0.1867]
[1643824567055,0.85236318,2675.2,2675.0,0.1867]
[1643824567453,0.00515553,2675.8,2674.9,0.00379758]
[1643824567653,1.77162469,2675.7,2674.9,0.00379758]
[1643824567855,0.00515591,2675.2,2674.9,0.00379758]
[1643824568956,0.00468409,2675.2,2674.7,3.3244]
[1643824569154,0.00468409,2675.2,2675.1,0.72229404]
[1643824570020,0.1869,2676.1,2675.1,0.72229404]
[1643824570223,0.00467819,2675.3,2675.1,0.72229404]
[1643824570420,0.00467819,2675.3,2674.8,0.1869]
[1643824571023,0.1869,2676.1,2674.8,0.1869]
[1643824571228,1.58484844,2676.0,2674.8,0.1869]
[1643824571422,0.00467826,2675.2,2674.8,0.1869]
[1643824571822,0.00467826,2675.2,2675.1,0.89010837]
[1643824572021,0.00467826,2675.2,2674.8,0.1869]
[1643824572623,0.00470087,2675.3,2674.8,0.1869]
[1643824573422,0.1869,2676.1,2674.8,0.1869]
[1643824573623,1.58487538,2676.0,2674.8,0.1869]
[1643824573856,0.00471771,2675.2,2675.1,0.82755499]
[1643824574053,0.00471771,2675.2,2674.8,0.1869]
[1643824574651,0.92657437,2675.6,2674.8,0.1869]
[1643824574856,0.00471775,2675.1,2674.8,0.1869]
[1643824575152,0.00471775,2675.1,2675.0,4.13866132]
[1643824575952,0.1869,2676.1,2675.0,4.13866132]
[1643824576152,0.00471771,2675.2,2675.0,4.13866132]
[1643824577152,0.88981476,2675.6,2675.0,4.13866132]
[1643824577353,0.00516364,2675.2,2675.0,4.13866132]
[1643824577999,0.00516364,2675.2,2675.1,5.65009]
[1643824578201,0.00516364,2675.2,2675.1,6.18909]
[1643824578400,0.00516364,2675.2,2675.1,7.18909]
[1643824579799,0.00516361,2675.3,2675.1,7.57333607]
[1643824579999,0.00516361,2675.3,2675.2,0.3]
[1643824580299,0.00516361,2675.3,2675.2,7.48909]
[1643824580499,0.1869,2676.5,2675.2,15.15537]
[1643824580701,0.1869,2676.5,2675.4,1.86834]
[1643824580702,1.58449534,2676.4,2675.4,1.86834]
[1643824581000,1.58449534,2676.4,2675.5,0.58909]
[1643824581265,0.1869,2676.5,2676.3,0.83924447]
[1643824581456,0.01869,2676.6,2676.2,1.43401515]
[1643824581652,0.01869,2676.6,2676.2,0.89501515]
[1643824581948,0.1867,2676.7,2676.2,1.43401515]
[1643824582149,0.77056932,2676.8,2676.2,1.43401515]
[1643824582750,1.58428414,2676.7,2676.2,1.73401515]
[1643824582952,0.1867,2677.2,2676.6,0.19294125]
[1643824583152,1.58417698,2677.1,2676.6,0.24303125]
[1643824583350,1.58417698,2677.1,2676.7,0.539]
[1643824583552,1.58417698,2677.0,2676.7,0.539]
[1643824583750,0.76688608,2677.3,2676.7,0.539]
[1643824583952,1.58413903,2677.2,2676.7,1.50889281]
[1643824584652,0.00553132,2677.1,2676.7,0.539]
[1643824585103,1.58415466,2677.0,2676.7,0.539]
[1643824585304,0.00553132,2677.1,2676.7,0.539]
[1643824585506,1.58421681,2677.0,2676.7,0.539]
[1643824585705,0.89760432,2676.7,2676.5,0.38424607]
[1643824586907,0.89760432,2676.7,2676.3,0.05009]
[1643824587203,0.90313597,2676.7,2676.3,0.05009]
[1643824587402,0.90313597,2676.7,2676.0,0.1867]
[1643824587605,1.58440395,2676.6,2675.8,1.1845]
[1643824587803,0.90313597,2676.7,2675.8,0.05009]
[1643824588004,1.08983597,2676.7,2675.7,1.61544607]
[1643824588204,1.58445343,2676.6,2675.7,1.61544607]
[1643824588404,0.00553186,2676.5,2675.7,1.96553607]
[1643824588605,0.00553186,2676.5,2675.9,0.79526275]
[1643824589251,1.08430432,2676.7,2675.9,0.79526275]
[1643824589455,0.00516061,2676.3,2675.9,0.79526275]
[1643824590251,0.00516061,2676.3,2675.7,1.36854607]
[1643824590452,1.10494365,2676.7,2675.7,1.36854607]
[1643824590453,0.91824365,2676.7,2675.7,1.36854607]
[1643824590655,0.89760432,2676.7,2675.8,0.1867]
[1643824590857,0.00516068,2676.2,2675.7,0.62103607]
[1643824591057,0.00516068,2676.2,2675.7,0.43433607]
[1643824591256,0.16884911,2676.2,2675.6,3.4136]
[1643824591459,0.86986556,2676.1,2675.6,3.2269]
[1643824591656,0.86986556,2676.1,2675.5,1.0888504]
[1643824591857,0.00516068,2676.2,2675.5,1.0888504]
[1643824592061,0.0051608,2676.1,2675.5,0.9021504]
[1643824592499,0.0051608,2676.1,2675.7,0.16974809]
[1643824592696,0.0051608,2676.1,2675.5,1.2021504]
[1643824592897,0.7421117,2676.0,2675.5,0.3]
[1643824593097,0.00475519,2675.9,2675.4,1.28441]
[1643824593698,0.00475519,2675.9,2675.4,1.43886424]
[1643824594099,0.00475519,2675.9,2675.4,0.93432]
[1643824594301,0.93673773,2676.3,2674.9,0.43433607]
[1643824594302,0.0047553,2675.8,2674.9,0.43433607]
[1643824594500,0.1867,2675.7,2674.9,0.43433607]
[1643824595198,0.1867,2675.7,2675.2,0.69883445]
[1643824595399,1.58496012,2675.6,2675.2,0.88716094]
[1643824595602,0.00475556,2675.4,2675.2,0.88716094]
[1643824595798,0.00475556,2675.4,2675.2,0.69883445]
[1643824596449,0.00475556,2675.4,2674.9,0.43433607]
[1643824596848,0.00494198,2675.4,2674.9,0.43433607]
[1643824597250,0.00494198,2675.4,2674.8,0.00494322]